[Event "GrandPrix_30.05"]
[Site "Chess.com"]
[Date "2020.05.30"]
[Round "7"]
[White "szachuspl"]
[Black "LorisinoC"]
[Result "0-1"]
[WhiteElo "2338"]
[BlackElo "2241"]
[TimeControl "600+2"]
[EndTime "11:30:57 PDT"]
[Termination "LorisinoC won by resignation"]

1. d4 {[%clk 0:10:01.9]} 1... d5 {[%clk 0:10:00]} 2. c4 {[%clk 0:10:02]} 2... e6
{[%clk 0:09:59.7]} 3. Nf3 {[%clk 0:10:02.8]} 3... Nf6 {[%clk 0:09:52.6]} 4. Nc3
{[%clk 0:10:03.3]} 4... c6 {[%clk 0:09:52.5]} 5. Bg5 {[%clk 0:10:02.5]} 5...
Nbd7 {[%clk 0:09:51.9]} 6. e3 {[%clk 0:10:02.8]} 6... Qa5 {[%clk 0:09:47.5]} 7.
Nd2 {[%clk 0:10:03.4]} 7... Bb4 {[%clk 0:09:44.9]} 8. Qc2 {[%clk 0:10:04.2]}
8... O-O {[%clk 0:09:25]} 9. Be2 {[%clk 0:09:40.2]} 9... e5 {[%clk 0:09:24.9]}
10. dxe5 {[%clk 0:09:26.7]} 10... Ne4 {[%clk 0:09:21.7]} 11. Ndxe4 {[%clk
0:09:09.9]} 11... dxe4 {[%clk 0:09:23.6]} 12. O-O {[%clk 0:09:04.7]} 12... Bxc3
{[%clk 0:09:14.6]} 13. Qxc3 {[%clk 0:08:46.4]} 13... Qxc3 {[%clk 0:09:15.2]} 14.
bxc3 {[%clk 0:08:47.4]} 14... Nxe5 {[%clk 0:09:16.9]} 15. Bf4 {[%clk 0:08:44.1]}
15... Nd3 {[%clk 0:09:14.6]} 16. Bd6 {[%clk 0:08:24.8]} 16... Re8 {[%clk
0:09:12.6]} 17. Rab1 {[%clk 0:08:10.7]} 17... b6 {[%clk 0:09:09.1]} 18. f3
{[%clk 0:07:59.9]} 18... c5 {[%clk 0:09:03.7]} 19. fxe4 {[%clk 0:07:35.4]} 19...
Ne5 {[%clk 0:08:52.3]} 20. a4 {[%clk 0:07:35.9]} 20... Ng4 {[%clk 0:08:41]} 21.
Bf3 {[%clk 0:07:25.7]} 21... Nxe3 {[%clk 0:08:38.4]} 22. e5 {[%clk 0:06:31.3]}
22... Nxf1 {[%clk 0:08:26.9]} 23. Bxa8 {[%clk 0:06:29.7]} 23... Nd2 {[%clk
0:08:19.1]} 24. Ra1 {[%clk 0:05:59.1]} 24... Nxc4 {[%clk 0:08:12]} 25. a5 {[%clk
0:05:53.9]} 25... Nxa5 {[%clk 0:08:08.6]} 26. Ra3 {[%clk 0:05:42.5]} 26... Be6
{[%clk 0:07:51.2]} 27. Bf3 {[%clk 0:05:38.4]} 27... Rd8 {[%clk 0:07:46.9]} 28.
h3 {[%clk 0:05:28]} 28... h6 {[%clk 0:07:37.7]} 29. Kf2 {[%clk 0:05:25.2]} 29...
Nc4 {[%clk 0:07:09.5]} 30. Rxa7 {[%clk 0:05:14.8]} 30... Nxd6 {[%clk 0:07:10.1]}
31. exd6 {[%clk 0:05:16.7]} 31... Rxd6 {[%clk 0:07:04.7]} 32. Ke3 {[%clk
0:05:17.1]} 32... b5 {[%clk 0:06:55.9]} 33. Rb7 {[%clk 0:05:15.1]} 33... Bc4
{[%clk 0:06:48.6]} 34. Rc7 {[%clk 0:05:12.5]} 34... Rd3+ {[%clk 0:06:45.7]} 35.
Kf4 {[%clk 0:05:07.3]} 35... g5+ {[%clk 0:06:40.9]} 36. Kf5 {[%clk 0:04:58.5]}
36... Rxc3 {[%clk 0:06:27.9]} 37. Kf6 {[%clk 0:04:56.4]} 37... Be6 {[%clk
0:06:28.5]} 38. Rb7 {[%clk 0:04:55.5]} 38... Rc4 {[%clk 0:05:40.6]} 39. Rxb5
{[%clk 0:04:47.7]} 39... Kh7 {[%clk 0:05:40.6]} 40. g3 {[%clk 0:04:29.2]} 40...
Rb4 {[%clk 0:04:54.2]} 41. Rxc5 {[%clk 0:04:25.8]} 41... Rb2 {[%clk 0:04:54.7]}
42. Be4+ {[%clk 0:04:14.7]} 42... Kg8 {[%clk 0:04:48.9]} 43. h4 {[%clk 0:04:16]}
43... Rf2+ {[%clk 0:04:37.8]} 44. Ke5 {[%clk 0:03:52.4]} 44... gxh4 {[%clk
0:04:37.9]} 45. gxh4 {[%clk 0:03:53]} 45... Rh2 {[%clk 0:04:37.7]} 46. Rc2
{[%clk 0:02:26]} 46... Rxh4 {[%clk 0:04:31.1]} 47. Rg2+ {[%clk 0:02:27]} 47...
Kf8 {[%clk 0:04:27.3]} 48. Rb2 {[%clk 0:02:23.2]} 48... Ke7 {[%clk 0:04:09.5]}
49. Rb7+ {[%clk 0:02:22.4]} 49... Kd8 {[%clk 0:04:05.9]} 50. Rb8+ {[%clk
0:02:17.9]} 50... Kc7 {[%clk 0:03:58.1]} 51. Rh8 {[%clk 0:02:06.4]} 51... h5
{[%clk 0:03:47.5]} 52. Bf5 {[%clk 0:01:58.5]} 52... Bxf5 {[%clk 0:03:41.6]} 53.
Kxf5 {[%clk 0:01:59.5]} 53... Rh1 {[%clk 0:03:42.3]} 54. Rh7 {[%clk 0:00:37.8]}
54... Kd6 {[%clk 0:03:35.5]} 55. Kg5 {[%clk 0:00:34.1]} 55... Ke7 {[%clk
0:03:13.9]} 56. Rh8 {[%clk 0:00:29.1]} 56... h4 {[%clk 0:03:10.5]} 57. Kg4
{[%clk 0:00:29.9]} 57... h3 {[%clk 0:03:10.1]} 58. Kg3 {[%clk 0:00:31.1]} 58...
Kf6 {[%clk 0:03:00.7]} 59. Ra8 {[%clk 0:00:30.1]} 59... Kg5 {[%clk 0:03:00]} 60.
Rg8+ {[%clk 0:00:29.6]} 60... Kf5 {[%clk 0:02:59.1]} 61. Ra8 {[%clk 0:00:30.4]}
61... f6 {[%clk 0:02:54]} 62. Ra5+ {[%clk 0:00:29]} 62... Kg6 {[%clk 0:02:54]}
63. Ra6 {[%clk 0:00:29.4]} 63... Kg5 {[%clk 0:02:36.1]} 64. Ra5+ {[%clk
0:00:30.2]} 64... f5 {[%clk 0:02:36.8]} 65. Rb5 {[%clk 0:00:31.4]} 65... Rg1+
{[%clk 0:02:31.3]} 66. Kxh3 {[%clk 0:00:30.9]} 66... Kf4 {[%clk 0:02:30.2]} 67.
Kh2 {[%clk 0:00:31.6]} 67... Rg5 {[%clk 0:02:27]} 68. Rb3 {[%clk 0:00:31.2]}
68... Ke4 {[%clk 0:02:24.3]} 69. Rb4+ {[%clk 0:00:31.9]} 69... Kd3 {[%clk
0:02:22.9]} 70. Rb3+ {[%clk 0:00:33]} 70... Kc2 {[%clk 0:02:20.3]} 71. Re3
{[%clk 0:00:27.7]} 71... Kd2 {[%clk 0:02:20.7]} 72. Re5 {[%clk 0:00:27]} 72...
Kd3 {[%clk 0:02:07]} 73. Kh3 {[%clk 0:00:27.8]} 73... Kd4 {[%clk 0:02:01]} 74.
Re1 {[%clk 0:00:28.7]} 74... f4 {[%clk 0:01:53.6]} 75. Kh2 {[%clk 0:00:20.5]}
75... f3 {[%clk 0:01:48.2]} 76. Re8 {[%clk 0:00:20.8]} 76... f2 {[%clk
0:01:46.5]} 77. Rf8 {[%clk 0:00:21.7]} 77... Ke3 {[%clk 0:01:47.1]} 78. Re8+
{[%clk 0:00:22.4]} 78... Kd2 {[%clk 0:01:47]} 79. Rd8+ {[%clk 0:00:19.9]} 79...
Ke1 {[%clk 0:01:46.3]} 80. Re8+ {[%clk 0:00:21]} 80... Kf1 {[%clk 0:01:46.8]}
81. Rf8 {[%clk 0:00:21.4]} 81... Rg2+ {[%clk 0:01:40.1]} 82. Kh3 {[%clk
0:00:21.3]} 82... Rg1 {[%clk 0:01:40.9]} 83. Re8 {[%clk 0:00:20.7]} 83... Rh1+
{[%clk 0:01:37.1]} 84. Kg3 {[%clk 0:00:21.7]} 84... Kg1 {[%clk 0:01:32.4]} 85.
Ra8 {[%clk 0:00:06]} 85... f1=Q {[%clk 0:01:27]} 0-1

[Event "GrandPrix_30.05"]
[Site "Chess.com"]
[Date "2020.05.30"]
[Round "7"]
[White "DaggiGretarsson"]
[Black "v-kazakouski"]
[Result "0-1"]
[WhiteElo "2189"]
[BlackElo "2394"]
[TimeControl "600+2"]
[EndTime "11:31:06 PDT"]
[Termination "v-kazakouski won by resignation"]

1. d4 {[%clk 0:10:00.1]} 1... Nf6 {[%clk 0:10:00.1]} 2. c4 {[%clk 0:09:59.9]}
2... e6 {[%clk 0:10:00.6]} 3. Nf3 {[%clk 0:09:58]} 3... d5 {[%clk 0:09:57.1]} 4.
Nc3 {[%clk 0:09:57.2]} 4... Bb4 {[%clk 0:09:57.6]} 5. Qa4+ {[%clk 0:09:55.4]}
5... Nc6 {[%clk 0:09:58.2]} 6. cxd5 {[%clk 0:09:55.6]} 6... exd5 {[%clk
0:09:58.2]} 7. Bg5 {[%clk 0:09:56]} 7... h6 {[%clk 0:09:53.4]} 8. Bxf6 {[%clk
0:09:56.2]} 8... Qxf6 {[%clk 0:09:53.1]} 9. e3 {[%clk 0:09:57.3]} 9... O-O
{[%clk 0:09:53.6]} 10. Be2 {[%clk 0:09:57.8]} 10... Rd8 {[%clk 0:09:37.7]} 11.
O-O {[%clk 0:09:54.6]} 11... a6 {[%clk 0:09:33.9]} 12. Qb3 {[%clk 0:09:20]}
12... Be6 {[%clk 0:09:12.8]} 13. Ne5 {[%clk 0:09:19.4]} 13... Bd6 {[%clk
0:08:11]} 14. Nxc6 {[%clk 0:07:44.3]} 14... bxc6 {[%clk 0:08:12.9]} 15. Na4
{[%clk 0:07:45.3]} 15... c5 {[%clk 0:07:23.7]} 16. dxc5 {[%clk 0:07:36.6]} 16...
d4 {[%clk 0:06:46.8]} 17. Qc2 {[%clk 0:07:15.3]} 17... Bf5 {[%clk 0:05:29.8]}
18. e4 {[%clk 0:05:54.2]} 18... Bxh2+ {[%clk 0:03:39.9]} 19. Kxh2 {[%clk
0:05:51.4]} 19... Qh4+ {[%clk 0:03:40.7]} 20. Kg1 {[%clk 0:05:51.2]} 20... Bxe4
{[%clk 0:03:41.5]} 21. Qd2 {[%clk 0:04:17]} 21... Bc6 {[%clk 0:02:30.9]} 22. b3
{[%clk 0:04:10.9]} 22... d3 {[%clk 0:01:57.1]} 23. Bd1 {[%clk 0:04:03.7]} 23...
Rd4 {[%clk 0:01:57.8]} 24. f4 {[%clk 0:03:40.9]} 24... Re8 {[%clk 0:01:26.3]}
25. Nc3 {[%clk 0:03:37.9]} 25... g5 {[%clk 0:00:31.1]} 26. Qf2 {[%clk
0:03:09.5]} 26... Qxf2+ {[%clk 0:00:18.2]} 27. Rxf2 {[%clk 0:03:04.6]} 27...
Re1+ {[%clk 0:00:18.4]} 28. Rf1 {[%clk 0:02:59.3]} 28... d2 {[%clk 0:00:19.7]}
29. Bc2 {[%clk 0:02:08.7]} 29... Re3 {[%clk 0:00:16.1]} 30. Nd1 {[%clk
0:01:41.6]} 30... Rg3 {[%clk 0:00:16.5]} 31. Rf2 {[%clk 0:01:42.4]} 31... gxf4
{[%clk 0:00:16.1]} 32. Kh2 {[%clk 0:00:43.5]} 32... Rg5 {[%clk 0:00:16.6]} 33.
Nb2 {[%clk 0:00:37.7]} 33... f3 {[%clk 0:00:16.6]} 34. g3 {[%clk 0:00:31.5]}
34... Rxc5 {[%clk 0:00:17.4]} 35. Nc4 {[%clk 0:00:30.9]} 35... Be4 {[%clk
0:00:14.1]} 36. Bd1 {[%clk 0:00:12.7]} 36... Rcd5 {[%clk 0:00:12.6]} 37. a4
{[%clk 0:00:10.8]} 37... Rh5+ {[%clk 0:00:09.7]} 38. Kg1 {[%clk 0:00:11.1]}
38... Rg5 {[%clk 0:00:11.6]} 39. Rxd2 {[%clk 0:00:08.2]} 39... Rxg3+ {[%clk
0:00:12.6]} 40. Kh2 {[%clk 0:00:08.8]} 40... Rxd2+ {[%clk 0:00:10.9]} 41. Kxg3
{[%clk 0:00:10.1]} 41... Rg2+ {[%clk 0:00:11.9]} 42. Kf4 {[%clk 0:00:11]} 42...
f2 {[%clk 0:00:13.4]} 43. Be2 {[%clk 0:00:12.1]} 43... Rg1 {[%clk 0:00:12.8]}
44. Rf1 {[%clk 0:00:13.1]} 44... Bc2 {[%clk 0:00:07.7]} 45. Nd2 {[%clk
0:00:12.8]} 45... Rg6 {[%clk 0:00:05.1]} 46. Rxf2 {[%clk 0:00:12.9]} 46... Rd6
{[%clk 0:00:06.5]} 47. Bc4 {[%clk 0:00:12.5]} 47... Kg7 {[%clk 0:00:07.5]} 48.
Ke3 {[%clk 0:00:13.1]} 48... Bg6 {[%clk 0:00:08.1]} 49. Ne4 {[%clk 0:00:13]}
49... Rc6 {[%clk 0:00:05.8]} 50. Kd4 {[%clk 0:00:08.2]} 50... a5 {[%clk
0:00:04.7]} 51. Nc3 {[%clk 0:00:07]} 51... Rd6+ {[%clk 0:00:05.1]} 52. Kc5
{[%clk 0:00:07.9]} 52... h5 {[%clk 0:00:06.8]} 53. Bd5 {[%clk 0:00:08.4]} 53...
h4 {[%clk 0:00:07.3]} 54. Nb5 {[%clk 0:00:09.1]} 54... Rf6 {[%clk 0:00:04.2]}
55. Rxf6 {[%clk 0:00:09.5]} 55... Kxf6 {[%clk 0:00:06.1]} 56. Nxc7 {[%clk
0:00:10.6]} 56... Ke5 {[%clk 0:00:07.4]} 57. Nb5 {[%clk 0:00:03.7]} 57... Be4
{[%clk 0:00:05.9]} 58. Bxe4 {[%clk 0:00:04.5]} 58... Kxe4 {[%clk 0:00:07.8]} 59.
Nc3+ {[%clk 0:00:05.8]} 59... Kf3 {[%clk 0:00:08.7]} 60. Ne4 {[%clk 0:00:05.3]}
60... f5 {[%clk 0:00:05.4]} 61. Ng5+ {[%clk 0:00:04.1]} 61... Kg4 {[%clk
0:00:05.9]} 62. b4 {[%clk 0:00:05.5]} 62... Kxg5 {[%clk 0:00:06.1]} 63. b5
{[%clk 0:00:04.7]} 63... h3 {[%clk 0:00:07.2]} 64. b6 {[%clk 0:00:06.1]} 64...
h2 {[%clk 0:00:08.7]} 65. b7 {[%clk 0:00:07.6]} 65... h1=Q {[%clk 0:00:10.1]}
66. b8=Q {[%clk 0:00:08.6]} 66... Qc1+ {[%clk 0:00:10.8]} 67. Kd5 {[%clk
0:00:07.8]} 67... Qd1+ {[%clk 0:00:11.2]} 68. Ke6 {[%clk 0:00:08.2]} 68... Qxa4
{[%clk 0:00:10.6]} 69. Qg8+ {[%clk 0:00:04.4]} 69... Kf4 {[%clk 0:00:10.4]} 70.
Qb8+ {[%clk 0:00:05.3]} 70... Kg4 {[%clk 0:00:10]} 71. Qg8+ {[%clk 0:00:05.9]}
71... Kf3 {[%clk 0:00:09]} 72. Kxf5 {[%clk 0:00:06.4]} 72... Qf4+ {[%clk
0:00:08.2]} 0-1

[Event "GrandPrix_30.05"]
[Site "Chess.com"]
[Date "2020.05.30"]
[Round "7"]
[White "Vuk2000"]
[Black "2346PL"]
[Result "1/2-1/2"]
[WhiteElo "2205"]
[BlackElo "2098"]
[TimeControl "600+2"]
[EndTime "11:31:11 PDT"]
[Termination "Game drawn by repetition"]

1. d4 {[%clk 0:10:01.9]} 1... f5 {[%clk 0:10:00.7]} 2. Nf3 {[%clk 0:10:02.3]}
2... Nf6 {[%clk 0:10:02.2]} 3. c4 {[%clk 0:10:03]} 3... g6 {[%clk 0:10:03.7]} 4.
g3 {[%clk 0:10:04.1]} 4... Bg7 {[%clk 0:10:05.3]} 5. Bg2 {[%clk 0:10:05.4]} 5...
O-O {[%clk 0:10:06.8]} 6. b4 {[%clk 0:10:06.4]} 6... d6 {[%clk 0:10:04.6]} 7.
Bb2 {[%clk 0:10:06.1]} 7... e5 {[%clk 0:10:05.9]} 8. dxe5 {[%clk 0:10:03.3]}
8... Ng4 {[%clk 0:10:07]} 9. h3 {[%clk 0:09:45.3]} 9... Nxe5 {[%clk 0:10:07.5]}
10. Qd5+ {[%clk 0:09:45.6]} 10... Nf7 {[%clk 0:09:31.4]} 11. Bxg7 {[%clk
0:09:43.6]} 11... Kxg7 {[%clk 0:09:33.3]} 12. Nc3 {[%clk 0:09:41.2]} 12... Qf6
{[%clk 0:08:41.2]} 13. Rc1 {[%clk 0:09:16.1]} 13... Nc6 {[%clk 0:08:25.7]} 14.
b5 {[%clk 0:08:45.7]} 14... Nce5 {[%clk 0:08:19.8]} 15. Nxe5 {[%clk 0:07:59.4]}
15... Nxe5 {[%clk 0:07:00.9]} 16. c5 {[%clk 0:07:57.5]} 16... Rd8 {[%clk
0:06:05.2]} 17. cxd6 {[%clk 0:07:40.4]} 17... Rxd6 {[%clk 0:05:47.9]} 18. Qc5
{[%clk 0:07:41]} 18... c6 {[%clk 0:05:00.1]} 19. bxc6 {[%clk 0:07:31.3]} 19...
Nxc6 {[%clk 0:04:54]} 20. Nb5 {[%clk 0:07:24.4]} 20... Rd7 {[%clk 0:04:36.5]}
21. O-O {[%clk 0:06:48.8]} 21... a6 {[%clk 0:04:34.9]} 22. Bxc6 {[%clk
0:06:26.1]} 22... Qxc6 {[%clk 0:04:04.8]} 23. Nc7 {[%clk 0:04:13]} 23... Qxc5
{[%clk 0:04:03.9]} 24. Rxc5 {[%clk 0:04:13.5]} 24... b6 {[%clk 0:03:45.8]} 25.
Rc6 {[%clk 0:03:53]} 25... Bb7 {[%clk 0:03:10.3]} 26. Ne6+ {[%clk 0:03:50.1]}
26... Kg8 {[%clk 0:02:58]} 27. Rxb6 {[%clk 0:03:50.4]} 27... Bd5 {[%clk
0:02:56.1]} 28. Nc5 {[%clk 0:03:35]} 28... Re7 {[%clk 0:02:49.4]} 29. Rb2 {[%clk
0:03:18.8]} 29... a5 {[%clk 0:02:22.1]} 30. Rd1 {[%clk 0:03:17.6]} 30... Bc4
{[%clk 0:02:02]} 31. e3 {[%clk 0:03:17.9]} 31... Rc7 {[%clk 0:01:54.6]} 32. Na4
{[%clk 0:03:16]} 32... Be6 {[%clk 0:01:43.4]} 33. Rd6 {[%clk 0:03:09.4]} 33...
Kf7 {[%clk 0:01:44.2]} 34. Kg2 {[%clk 0:03:04.2]} 34... Ke7 {[%clk 0:01:39.5]}
35. Rd4 {[%clk 0:03:02]} 35... Ra6 {[%clk 0:01:18.6]} 36. g4 {[%clk 0:02:57.9]}
36... Rac6 {[%clk 0:00:55.4]} 37. Nb6 {[%clk 0:02:18.3]} 37... Kf6 {[%clk
0:00:43.6]} 38. Rb5 {[%clk 0:02:02.7]} 38... Rb7 {[%clk 0:00:32]} 39. Nd5+
{[%clk 0:01:51.9]} 39... Bxd5+ {[%clk 0:00:33.1]} 40. Rdxd5 {[%clk 0:01:52.1]}
40... Rxb5 {[%clk 0:00:20.8]} 41. Rxb5 {[%clk 0:01:54]} 41... a4 {[%clk
0:00:20.5]} 42. Rb4 {[%clk 0:01:54.3]} 42... a3 {[%clk 0:00:20.9]} 43. Rb3
{[%clk 0:01:50.5]} 43... Ra6 {[%clk 0:00:22]} 44. f4 {[%clk 0:01:46.5]} 44... h5
{[%clk 0:00:19.5]} 45. gxh5 {[%clk 0:01:33.8]} 45... gxh5 {[%clk 0:00:21.4]} 46.
Kg3 {[%clk 0:01:34]} 46... Kg6 {[%clk 0:00:21.9]} 47. Kf3 {[%clk 0:01:27.2]}
47... h4 {[%clk 0:00:21.9]} 48. Rb8 {[%clk 0:01:23.8]} 48... Rc6 {[%clk
0:00:18.4]} 49. Rb3 {[%clk 0:01:22.5]} 49... Rc2 {[%clk 0:00:18]} 50. Rxa3
{[%clk 0:01:17.7]} 50... Rh2 {[%clk 0:00:19.5]} 51. Ra6+ {[%clk 0:00:49.1]}
51... Kg7 {[%clk 0:00:20.2]} 52. a4 {[%clk 0:00:20.3]} 52... Rxh3+ {[%clk
0:00:21.1]} 53. Kf2 {[%clk 0:00:20.3]} 53... Rh2+ {[%clk 0:00:21]} 54. Kf3
{[%clk 0:00:17.8]} 54... Rh3+ {[%clk 0:00:21]} 55. Kf2 {[%clk 0:00:12.8]} 55...
Rh2+ {[%clk 0:00:22.3]} 56. Kg1 {[%clk 0:00:05.6]} 56... Re2 {[%clk 0:00:18.8]}
57. Re6 {[%clk 0:00:06.2]} 57... Ra2 {[%clk 0:00:19.6]} 58. Re5 {[%clk
0:00:03.9]} 58... Kf6 {[%clk 0:00:20.9]} 59. a5 {[%clk 0:00:05.8]} 59... h3
{[%clk 0:00:19.4]} 60. Kh1 {[%clk 0:00:06.1]} 60... Kg6 {[%clk 0:00:18.9]} 61.
Rd5 {[%clk 0:00:05.9]} 61... Kh5 {[%clk 0:00:11.3]} 62. Rxf5+ {[%clk 0:00:05.7]}
62... Kg4 {[%clk 0:00:09.9]} 63. Rg5+ {[%clk 0:00:05.4]} 63... Kf3 {[%clk
0:00:10.6]} 64. a6 {[%clk 0:00:04.1]} 64... Kxe3 {[%clk 0:00:08.3]} 65. f5
{[%clk 0:00:04.1]} 65... Kf4 {[%clk 0:00:08.5]} 66. Rg6 {[%clk 0:00:02.8]} 66...
Kxf5 {[%clk 0:00:08.4]} 67. Rh6 {[%clk 0:00:03.8]} 67... Kg4 {[%clk 0:00:08.3]}
68. Rh8 {[%clk 0:00:05.7]} 68... Rxa6 {[%clk 0:00:06.4]} 69. Rg8+ {[%clk
0:00:07.6]} 69... Kf3 {[%clk 0:00:06.4]} 70. Rf8+ {[%clk 0:00:09.5]} 70... Kg4
{[%clk 0:00:07]} 71. Rg8+ {[%clk 0:00:11]} 71... Kh4 {[%clk 0:00:07.6]} 72. Rh8+
{[%clk 0:00:12.2]} 72... Kg3 {[%clk 0:00:08.8]} 73. Rg8+ {[%clk 0:00:14.1]}
73... Kf3 {[%clk 0:00:09.9]} 74. Rf8+ {[%clk 0:00:12.8]} 74... Kg3 {[%clk
0:00:11.2]} 75. Rg8+ {[%clk 0:00:12.4]} 75... Kf3 {[%clk 0:00:12.5]} 1/2-1/2

[Event "GrandPrix_30.05"]
[Site "Chess.com"]
[Date "2020.05.30"]
[Round "7"]
[White "DenisQ"]
[Black "Azatic"]
[Result "1-0"]
[WhiteElo "2253"]
[BlackElo "2287"]
[TimeControl "600+2"]
[EndTime "11:31:14 PDT"]
[Termination "DenisQ won by checkmate"]

1. Nf3 {[%clk 0:10:01.6]} 1... c5 {[%clk 0:09:59.9]} 2. c4 {[%clk 0:10:00.2]}
2... Nf6 {[%clk 0:10:00.6]} 3. Nc3 {[%clk 0:09:59.9]} 3... g6 {[%clk 0:09:53.7]}
4. g3 {[%clk 0:09:57.2]} 4... Bg7 {[%clk 0:09:53.7]} 5. Bg2 {[%clk 0:09:58.4]}
5... O-O {[%clk 0:09:55.6]} 6. O-O {[%clk 0:09:59.3]} 6... d5 {[%clk 0:09:56.9]}
7. d4 {[%clk 0:09:32.7]} 7... cxd4 {[%clk 0:09:26.9]} 8. Nxd5 {[%clk 0:09:30.8]}
8... Nxd5 {[%clk 0:09:24.8]} 9. cxd5 {[%clk 0:09:32.7]} 9... Qxd5 {[%clk
0:09:06.7]} 10. Be3 {[%clk 0:09:32]} 10... Bf5 {[%clk 0:07:33.8]} 11. Nxd4
{[%clk 0:08:30.4]} 11... Be4 {[%clk 0:07:33.3]} 12. f3 {[%clk 0:07:47.8]} 12...
Bf5 {[%clk 0:07:33]} 13. Nxf5 {[%clk 0:07:14]} 13... Qxf5 {[%clk 0:07:31.5]} 14.
Qb3 {[%clk 0:07:14.2]} 14... Nc6 {[%clk 0:07:03.9]} 15. Rad1 {[%clk 0:06:05.7]}
15... Rad8 {[%clk 0:06:19.7]} 16. Qxb7 {[%clk 0:05:48.6]} 16... Qe6 {[%clk
0:05:24.9]} 17. Qb3 {[%clk 0:05:30.2]} 17... Qxb3 {[%clk 0:05:08.8]} 18. axb3
{[%clk 0:05:29.9]} 18... Bxb2 {[%clk 0:05:10.3]} 19. f4 {[%clk 0:05:02]} 19...
Bd4 {[%clk 0:04:17.6]} 20. Kf2 {[%clk 0:04:59]} 20... Bxe3+ {[%clk 0:04:16.6]}
21. Kxe3 {[%clk 0:04:59.4]} 21... Na5 {[%clk 0:04:18]} 22. Rxd8 {[%clk
0:02:54.7]} 22... Rxd8 {[%clk 0:04:19.9]} 23. Rb1 {[%clk 0:02:34]} 23... e6
{[%clk 0:03:35.9]} 24. Be4 {[%clk 0:02:16.6]} 24... h5 {[%clk 0:03:15.3]} 25.
Bd3 {[%clk 0:02:07.2]} 25... Nc6 {[%clk 0:02:13.1]} 26. b4 {[%clk 0:02:03.9]}
26... Ne7 {[%clk 0:01:55.6]} 27. b5 {[%clk 0:01:28]} 27... Rd7 {[%clk
0:01:54.8]} 28. Rc1 {[%clk 0:01:11.9]} 28... Kg7 {[%clk 0:01:44.4]} 29. Rc5
{[%clk 0:01:09]} 29... Nd5+ {[%clk 0:01:31.1]} 30. Kf3 {[%clk 0:01:08.6]} 30...
Nb4 {[%clk 0:00:59.8]} 31. Be4 {[%clk 0:01:00.2]} 31... Kf6 {[%clk 0:00:44]} 32.
Rc4 {[%clk 0:00:51.5]} 32... Nd5 {[%clk 0:00:41.9]} 33. h3 {[%clk 0:00:47.1]}
33... g5 {[%clk 0:00:33.6]} 34. Rc5 {[%clk 0:00:38.2]} 34... gxf4 {[%clk
0:00:26.3]} 35. gxf4 {[%clk 0:00:39.3]} 35... Ne7 {[%clk 0:00:16.4]} 36. Rxh5
{[%clk 0:00:37.8]} 36... Rd1 {[%clk 0:00:15.5]} 37. Rc5 {[%clk 0:00:35]} 37...
Rd4 {[%clk 0:00:14.2]} 38. Rc7 {[%clk 0:00:33.1]} 38... Rb4 {[%clk 0:00:14.8]}
39. Rb7 {[%clk 0:00:18.4]} 39... Rb3+ {[%clk 0:00:11.5]} 40. e3 {[%clk
0:00:16.8]} 40... Nc8 {[%clk 0:00:12.6]} 41. Bc6 {[%clk 0:00:13.3]} 41... Nd6
{[%clk 0:00:11.7]} 42. Rxa7 {[%clk 0:00:13.3]} 42... Nf5 {[%clk 0:00:07.3]} 43.
Ke2 {[%clk 0:00:10.3]} 43... Rxe3+ {[%clk 0:00:06.8]} 44. Kd2 {[%clk 0:00:11.4]}
44... Rxh3 {[%clk 0:00:08.3]} 45. b6 {[%clk 0:00:11]} 45... Nd4 {[%clk
0:00:09.8]} 46. Ba4 {[%clk 0:00:09.9]} 46... Rh1 {[%clk 0:00:06.2]} 47. Kc3
{[%clk 0:00:08.9]} 47... Rb1 {[%clk 0:00:05.8]} 48. Kxd4 {[%clk 0:00:08.7]}
48... Rxb6 {[%clk 0:00:06.8]} 49. Bc2 {[%clk 0:00:08.1]} 49... Rb4+ {[%clk
0:00:07.4]} 50. Ke3 {[%clk 0:00:07.8]} 50... Rb2 {[%clk 0:00:08.9]} 51. Be4
{[%clk 0:00:07.9]} 51... Rb3+ {[%clk 0:00:09.9]} 52. Kd4 {[%clk 0:00:08.1]}
52... Rb4+ {[%clk 0:00:10.7]} 53. Ke3 {[%clk 0:00:09.3]} 53... Rb3+ {[%clk
0:00:12.1]} 54. Bd3 {[%clk 0:00:10.3]} 54... Rb4 {[%clk 0:00:09.6]} 55. Rd7
{[%clk 0:00:09.4]} 55... Rb6 {[%clk 0:00:10.3]} 56. Rc7 {[%clk 0:00:08.9]} 56...
e5 {[%clk 0:00:10.9]} 57. f5 {[%clk 0:00:09.1]} 57... Rd6 {[%clk 0:00:11.3]} 58.
Be4 {[%clk 0:00:08.4]} 58... Rb6 {[%clk 0:00:10.7]} 59. Kf3 {[%clk 0:00:08]}
59... Rb3+ {[%clk 0:00:04.9]} 60. Kg4 {[%clk 0:00:08.8]} 60... Rb4 {[%clk
0:00:06.8]} 61. Rc6+ {[%clk 0:00:09.7]} 61... Kg7 {[%clk 0:00:08.1]} 62. f6+
{[%clk 0:00:10.5]} 62... Kh6 {[%clk 0:00:09.5]} 63. Kf5 {[%clk 0:00:11.8]} 63...
Rb2 {[%clk 0:00:09.1]} 64. Rc8 {[%clk 0:00:11.7]} 64... Rf2+ {[%clk 0:00:07.2]}
65. Kxe5 {[%clk 0:00:12.8]} 65... Kg5 {[%clk 0:00:06.9]} 66. Rg8+ {[%clk
0:00:13.5]} 66... Kh6 {[%clk 0:00:08.1]} 67. Rg7 {[%clk 0:00:14.4]} 67... Ra2
{[%clk 0:00:05.7]} 68. Rxf7 {[%clk 0:00:13.9]} 68... Ra5+ {[%clk 0:00:07.6]} 69.
Bd5 {[%clk 0:00:14.8]} 69... Kg6 {[%clk 0:00:09.5]} 70. Rg7+ {[%clk 0:00:15.4]}
70... Kh6 {[%clk 0:00:11]} 71. Rg1 {[%clk 0:00:16]} 71... Ra7 {[%clk 0:00:07.6]}
72. f7 {[%clk 0:00:16.7]} 72... Kh7 {[%clk 0:00:07.7]} 73. Kf6 {[%clk
0:00:10.8]} 73... Ra6+ {[%clk 0:00:06.7]} 74. Be6 {[%clk 0:00:11.9]} 74... Ra3
{[%clk 0:00:06.8]} 75. Rh1+ {[%clk 0:00:12.3]} 75... Rh3 {[%clk 0:00:06.2]} 76.
Rxh3# {[%clk 0:00:13.4]} 1-0